fUST/lending_fUST_20240127
["ID","MTS","AMOUNT","RATE_DAILY","PERIOD"]
[312812305,1706287879805,-500.0,0.00043835,31]
[312812306,1706287879831,-500.0,0.00043835,31]
[312812307,1706287879851,-500.0,0.00043835,31]
[312812308,1706287879879,-500.0,0.00043835,31]
[312812309,1706287879899,-1000.0,0.00043835,2]
[312812310,1706287879920,-2217.02,0.00043835,2]
[312812311,1706287879943,-500.0,0.00043835,31]
[312812312,1706287879964,-888.34,0.00043835,31]
[312812313,1706287879987,-5958.34,0.00043835,31]
[312812314,1706287880002,-1509.31,0.00043835,2]
[312812315,1706287880020,-500.0,0.00043835,31]
[312812316,1706287880039,-8867.85,0.00043835,14]
[312812317,1706287880067,-500.0,0.00043835,31]
[312812318,1706287880103,-500.0,0.00043835,31]
[312812319,1706287880126,-1433.84,0.00043835,31]
[312812320,1706287880146,-500.0,0.00043835,31]
[312812321,1706287880161,-2231.09,0.00043835,31]
[312812322,1706287880182,-500.0,0.00043835,31]
[312812323,1706287880205,-500.0,0.00043835,31]
[312812324,1706287880219,-500.0,0.00043835,31]
[312812325,1706287880239,-495.58064375,0.00043835,31]
[312812326,1706287880272,-500.0,0.00043835,31]
[312812327,1706287880294,-916.44,0.00043835,31]
[312812328,1706287880325,-571.11,0.00043835,31]
[312812329,1706287880340,-1029.48,0.00043835,31]
[312812330,1706287880367,-500.0,0.00043835,31]
[312812331,1706287880380,-160.00064943,0.00044,120]
[312812332,1706287880409,-2192.0,0.00044,14]
[312812333,1706287880427,-150.0,0.00044176,2]
[312812334,1706287880445,-500.0,0.00044381,60]
[312812335,1706287880470,-500.0,0.00044381,60]
[312812336,1706287880499,-500.0,0.00044381,60]
[312812337,1706287880512,-360.92623343,0.00044381,60]
[312812338,1706287880538,-373.77722515,0.00044381,60]
[312812339,1706287880571,-500.0,0.00044381,60]
[312812340,1706287880589,-500.0,0.00044381,60]
[312812341,1706287880614,-500.0,0.00044381,60]
[312812342,1706287880636,-500.0,0.00044381,60]
[312812343,1706287880661,-500.0,0.00044381,60]
[312812344,1706287880687,-500.0,0.00044381,60]
[312812345,1706287880709,-500.0,0.00044381,60]
[312812346,1706287880728,-500.0,0.00044381,60]
[312812347,1706287880748,-500.0,0.00044381,60]
[312812348,1706287880766,-500.0,0.00044381,60]
[312812349,1706287880786,-500.0,0.00044381,60]
[312812350,1706287880813,-500.0,0.00044381,60]
[312812351,1706287880848,-500.0,0.00044381,60]
[312812352,1706287880865,-500.0,0.00044381,60]
[312812353,1706287880885,-258.85800975,0.00044381,60]
[312812354,1706287880910,-500.0,0.00044381,60]
[312812355,1706287880940,-500.0,0.00044381,60]
[312812356,1706287880965,-500.0,0.00044381,60]
[312812357,1706287880993,-500.0,0.00044381,60]
[312812358,1706287881007,-500.0,0.00044381,60]
[312812359,1706287881022,-500.0,0.00044381,60]
[312812360,1706287881051,-500.0,0.00044381,60]
[312812361,1706287881180,-500.0,0.00044381,60]
[312812362,1706287881192,-500.0,0.00044381,60]
[312812363,1706287881224,-500.0,0.00044381,60]
[312812364,1706287881241,-500.0,0.00044381,60]
[312812365,1706287881266,-500.0,0.00044381,60]
[312812366,1706287881288,-500.0,0.00044381,60]
[312812367,1706287881317,-500.0,0.00044381,60]
[312812368,1706287881342,-500.0,0.00044381,60]
[312812369,1706287881356,-591.80423155,0.00044381,60]
[312812370,1706287881381,-500.0,0.00044381,60]
[312812371,1706287881408,-500.0,0.00044381,60]
[312812372,1706287881425,-500.0,0.00044381,60]
[312812373,1706287881452,-500.0,0.00044381,60]
[312812374,1706287881467,-500.0,0.00044381,60]
[312812375,1706287881489,-500.0,0.00044381,60]
[312812376,1706287881510,-500.0,0.00044381,60]
[312812377,1706287881532,-500.0,0.00044381,60]
[312812378,1706287881553,-500.0,0.00044381,60]
[312812379,1706287881575,-500.0,0.00044381,60]
[312812380,1706287881592,-500.0,0.00044381,60]
[312812381,1706287881628,-500.0,0.00044381,60]
[312812382,1706287881641,-432.38813227,0.00044381,60]
[312812383,1706287881657,-500.0,0.00044381,60]
[312812384,1706287881687,-345.92593819,0.00044381,60]
[312812385,1706287881710,-500.0,0.00044381,60]
[312812386,1706287881737,-500.0,0.00044381,60]
[312812387,1706287881768,-500.0,0.00044381,60]
[312812388,1706287881790,-500.0,0.00044381,60]
[312812389,1706287881812,-500.0,0.00044381,60]
[312812390,1706287881833,-500.0,0.00044381,60]
[312812391,1706287881847,-500.0,0.00044381,60]
[312812392,1706287881885,-500.0,0.00044381,60]
[312812393,1706287881913,-500.0,0.00044381,60]
[312812394,1706287881927,-500.0,0.00044381,60]
[312812395,1706287881968,-500.0,0.00044381,60]
[312812396,1706287881987,-500.0,0.00044381,60]
[312812397,1706287882013,-500.0,0.00044381,60]
[312812398,1706287882028,-262.53968779,0.00044381,60]
[312812399,1706287882047,-500.0,0.00044383,31]
[312812400,1706287882070,-500.0,0.00044383,31]
[312812401,1706287882096,-500.0,0.00044383,7]
[312812402,1706287882121,-1406.89,0.00044383,31]
[312812403,1706287882143,-500.0,0.00044383,2]
[312812404,1706287882166,-500.0,0.00044383,31]
[312812405,1706287882194,-503.42,0.00044383,2]
[312812406,1706287882220,-500.0,0.00044383,31]
[312812407,1706287882242,-500.0,0.00044383,7]
[312812408,1706287882284,-500.0,0.00044383,31]
[312812409,1706287882305,-500.0,0.00044383,31]
[312812410,1706287882324,-500.0,0.00044383,31]
[312812411,1706287882355,-500.0,0.00044383,31]
[312812412,1706287882381,-716.39,0.00044383,31]
[312812413,1706287882403,-500.0,0.00044383,31]
[312812414,1706287882418,-500.0,0.00044383,31]
[312812415,1706287882440,-771.71,0.00044383,31]
[312812416,1706287882462,-500.0,0.00044383,31]
[312812417,1706287882491,-500.0,0.00044383,31]
[312812418,1706287882522,-613.22818558,0.00044383,31]
[312812419,1706287882543,-500.0,0.00044383,31]
[312812420,1706287882569,-1436.2,0.00044383,2]
[312812421,1706287882600,-500.0,0.00044383,31]
[312812422,1706287882619,-500.0,0.00044383,31]
[312812423,1706287882641,-500.0,0.00044383,31]
[312812424,1706287882684,-500.0,0.00044383,31]
[312812425,1706287882717,-500.0,0.00044383,31]
[312812426,1706287882737,-500.0,0.00044383,31]
[312812427,1706287882782,-500.0,0.00044383,31]
[312812428,1706287882876,-500.0,0.00044383,31]
[312812429,1706287882896,-500.0,0.00044383,31]
[312812430,1706287882916,-500.0,0.00044383,31]
[312812431,1706287882927,-500.0,0.00044383,31]
[312812432,1706287882970,-500.0,0.00044383,31]
[312812433,1706287882985,-500.0,0.00044383,31]
[312812434,1706287883025,-500.0,0.00044383,31]
[312812435,1706287883053,-500.0,0.00044383,31]
[312812436,1706287883082,-500.0,0.00044383,31]
[312812437,1706287883098,-500.0,0.00044383,31]
[312812438,1706287883112,-380.38467469,0.00044383,31]
[312812439,1706287883140,-500.0,0.00044383,31]
[312812440,1706287883157,-500.0,0.00044383,31]
[312812441,1706287883192,-708.23,0.00044383,31]
[312812442,1706287883214,-500.0,0.00044383,31]
[312812443,1706287883241,-500.0,0.00044383,31]
[312812444,1706287883254,-500.0,0.00044383,31]
[312812445,1706287883267,-500.0,0.00044383,31]
[312812446,1706287883285,-500.0,0.00044383,31]
[312812447,1706287883302,-500.0,0.00044383,31]
[312812448,1706287883319,-609.20464547,0.00044383,31]
[312812449,1706287883374,-500.0,0.00044383,31]
[312812450,1706287883432,-846.97,0.00044383,31]
[312812451,1706287883469,-600.0,0.00044383,2]
[312812452,1706287883507,-500.0,0.00044383,31]
[312812453,1706287883754,-500.0,0.00044383,31]
[312812454,1706287883785,-500.0,0.00044383,31]
[312812455,1706287883810,-500.0,0.00044383,31]
[312812456,1706287883850,-500.0,0.00044383,31]
[312812457,1706287883882,-526.51,0.00044383,31]
[312812458,1706287883913,-500.0,0.00044383,31]
[312812459,1706287883933,-500.0,0.00044383,31]
[312812460,1706287883963,-500.0,0.00044383,31]
[312812461,1706287883989,-500.0,0.00044383,31]
[312812462,1706287884000,-1953.82,0.00044383,31]
[312812463,1706287884027,-500.0,0.00044383,31]
[312812464,1706287884046,-500.0,0.00044383,31]
[312812465,1706287884065,-500.0,0.00044383,31]
[312812466,1706287884085,-1038.36,0.00044383,31]
[312812467,1706287884119,-500.0,0.00044383,31]
[312812468,1706287884142,-500.0,0.00044383,31]
[312812469,1706287884174,-1000.0,0.00044383,2]
[312812470,1706287884191,-500.0,0.00044383,31]
[312812471,1706287884212,-500.0,0.00044383,31]
[312812472,1706287884237,-500.0,0.00044383,31]
[312812473,1706287884257,-500.0,0.00044383,31]
[312812474,1706287884286,-500.0,0.00044383,31]
[312812475,1706287884326,-947.99,0.00044383,31]
[312812476,1706287884354,-3559.75,0.00044383,31]
[312812477,1706287884389,-79593.34,0.00044383,10]
[312812478,1706287884411,-500.0,0.00044383,31]
[312812479,1706287884436,-500.0,0.00044383,31]
[312812480,1706287884468,-500.0,0.00044383,31]
[312812481,1706287884497,-500.0,0.00044383,31]
[312812482,1706287884511,-500.0,0.00044383,31]
[312812483,1706287884545,-1000.0,0.00044383,2]
[312812484,1706287884570,-2217.02,0.00044383,2]
[312812485,1706287884607,-500.0,0.00044383,31]
[312812486,1706287884632,-888.34,0.00044383,31]
[312812487,1706287884662,-5958.34,0.00044383,31]
[312812488,1706287884677,-1509.31,0.00044383,2]
[312812489,1706287884708,-500.0,0.00044383,31]
[312812490,1706287884731,-8867.85,0.00044383,14]
[312812491,1706287884756,-500.0,0.00044383,31]
[312812492,1706287884768,-500.0,0.00044383,31]
[312812493,1706287884806,-1433.84,0.00044383,31]
[312812494,1706287884830,-500.0,0.00044383,31]
[312812495,1706287884850,-2231.09,0.00044383,31]
[312812496,1706287884871,-500.0,0.00044383,31]
[312812497,1706287884887,-500.0,0.00044383,31]
[312812498,1706287884906,-500.0,0.00044383,31]
[312812499,1706287884958,-916.44,0.00044383,31]
[312812500,1706287884979,-571.11,0.00044383,31]
[312812501,1706287884995,-1029.48,0.00044383,31]
[312812502,1706287885015,-500.0,0.00044383,31]
[312812503,1706287885069,-17707.73595353,0.0004483,5]
[312812504,1706287885145,-10202.84952288,0.0004483,5]
[312812505,1706287885166,-1359.53237366,0.0004483,5]
[312812506,1706287885255,-6785.71491461,0.0004483,5]
[312812507,1706287885266,-500.0,0.00044931,31]
[312812508,1706287885306,-500.0,0.00044931,31]
[312812509,1706287885342,-500.0,0.00044931,7]
[312812510,1706287885363,-1406.89,0.00044931,31]
[312812511,1706287885390,-500.0,0.00044931,2]
[312812512,1706287885411,-500.0,0.00044931,31]
[312812513,1706287885439,-503.42,0.00044931,2]
[312812514,1706287885458,-500.0,0.00044931,31]
[312812515,1706287885469,-280.24107277,0.00044931,7]
[312812516,1706287885492,-500.0,0.00044931,31]
[312812517,1706287885517,-500.0,0.00044931,31]
[312812518,1706287885532,-500.0,0.00044931,31]
[312812519,1706287885573,-500.0,0.00044931,31]
[312812520,1706287885592,-716.39,0.00044931,31]
[312812521,1706287885608,-500.0,0.00044931,31]
[312812522,1706287885628,-500.0,0.00044931,31]
[312812523,1706287885653,-771.71,0.00044931,31]
[312812524,1706287885674,-500.0,0.00044931,31]
[312812525,1706287885687,-500.0,0.00044931,31]
[312812526,1706287885724,-500.0,0.00044931,31]
[312812527,1706287885749,-1436.2,0.00044931,2]
[312812528,1706287885782,-500.0,0.00044931,31]
[312812529,1706287885809,-500.0,0.00044931,31]
[312812530,1706287885824,-500.0,0.00044931,31]
[312812531,1706287885843,-500.0,0.00044931,31]
[312812532,1706287885871,-500.0,0.00044931,31]
[312812533,1706287885928,-500.0,0.00044931,31]
[312812534,1706287885954,-500.0,0.00044931,31]
[312812535,1706287885986,-500.0,0.00044931,31]
[312812536,1706287886002,-500.0,0.00044931,31]
[312812537,1706287886024,-500.0,0.00044931,31]
[312812538,1706287886041,-500.0,0.00044931,31]
[312812539,1706287886055,-500.0,0.00044931,31]
[312812540,1706287886081,-500.0,0.00044931,31]
[312812541,1706287886129,-500.0,0.00044931,31]
[312812542,1706287886144,-500.0,0.00044931,31]
[312812543,1706287886155,-500.0,0.00044931,31]
[312812544,1706287886173,-500.0,0.00044931,31]
[312812545,1706287886184,-500.0,0.00044931,31]
[312812546,1706287886225,-500.0,0.00044931,31]
[312812547,1706287886276,-708.23,0.00044931,31]
[312812548,1706287886320,-500.0,0.00044931,31]
[312812549,1706287886340,-340.315124,0.00044931,31]
[312812550,1706287886378,-500.0,0.00044931,31]
[312812551,1706287886399,-500.0,0.00044931,31]
[312812552,1706287886432,-500.0,0.00044931,31]
[312812553,1706287886451,-500.0,0.00044931,31]
[312812554,1706287886472,-500.0,0.00044931,31]
[312812555,1706287886489,-846.97,0.00044931,31]
[312812556,1706287886514,-600.0,0.00044931,2]
[312812557,1706287886547,-500.0,0.00044931,31]
[312812558,1706287886581,-500.0,0.00044931,31]
[312812559,1706287886613,-500.0,0.00044931,31]
[312812560,1706287886645,-500.0,0.00044931,31]
[312812561,1706287886679,-500.0,0.00044931,31]
[312812562,1706287886695,-526.51,0.00044931,31]
[312812563,1706287886722,-500.0,0.00044931,31]
[312812564,1706287886746,-500.0,0.00044931,31]
[312812565,1706287886771,-500.0,0.00044931,31]
[312812566,1706287886802,-500.0,0.00044931,31]
[312812567,1706287886826,-1953.82,0.00044931,31]
[312812568,1706287886860,-500.0,0.00044931,31]
[312812569,1706287886897,-500.0,0.00044931,31]
[312812570,1706287886951,-259.290649,0.00044931,31]
[312812571,1706287886969,-1038.36,0.00044931,31]
[312812572,1706287887000,-500.0,0.00044931,31]
[312812573,1706287887019,-500.0,0.00044931,31]
[312812574,1706287887041,-1000.0,0.00044931,2]
[312812575,1706287887055,-500.0,0.00044931,31]
[312812576,1706287887162,-548.94341375,0.00044931,31]
[312812577,1706287887182,-500.0,0.00044931,31]
[312812578,1706287887260,-500.0,0.00044931,31]
[312812579,1706287887281,-500.0,0.00044931,31]
[312812580,1706287887341,-947.99,0.00044931,31]
[312812581,1706287887367,-3559.75,0.00044931,31]
[312812582,1706287887391,-28472.27795463,0.00044931,10]
[312812587,1706288065588,154.84515385,0.000176,2]
[312812673,1706289036770,-323.96190234,0.00025333,5]
[312812674,1706289036782,-174.81134936,0.00025333,5]
[312812675,1706289036791,-154.98450155,0.00025334,2]
[312812676,1706289036801,-168.913808,0.00025338,2]
[312812677,1706289036811,-155.74881665,0.00026412,2]
[312812678,1706289036820,-1633.75201769,0.00026517,2]
[312812728,1706289038010,-1304.02884152,0.00026517,2]
[312812730,1706289038022,-17947.19287372,0.00026517,2]
[312812732,1706289038031,-290.6211574,0.00027,2]
[312812734,1706289038041,-168.913808,0.00027065,2]
[312812736,1706289038054,-9208.31477254,0.000275,2]
[312812738,1706289038063,-24900.0,0.0002754,2]
[312812753,1706289038183,-4122.62625814,0.00028,2]
[312812756,1706289038192,-168.913808,0.00028792,2]
[312812758,1706289038202,-19345.24944895,0.00029,2]
[312812760,1706289038213,-473.43459955,0.0003,5]
[312812762,1706289038222,-197.99291097,0.0003013,2]
[312812764,1706289038231,-157.769621,0.00030137,2]
[312812766,1706289038240,-4739.03741966,0.000305,2]
[312812768,1706289038250,-154.98450155,0.00034551,4]
[312812770,1706289038259,-785.949758,0.000373,18]
[312812772,1706289038268,-686.23701283,0.00037589,4]
[312812774,1706289038277,-191.39107083,0.00037589,4]
[312812776,1706289038286,-309.72125707,0.00037589,4]
[312812778,1706289038295,-313.6891721,0.0003759,3]
[312812780,1706289038304,-300.0,0.000377,19]
[312812781,1706289038313,-777.0,0.00038,4]
[312812783,1706289038322,-150.96980604,0.0003802,4]
[312812785,1706289038332,-300.32472632,0.00038327,2]
[312812787,1706289038345,-300.32472629,0.00038345,2]
[312812789,1706289038390,-300.32472629,0.00038364,2]
[312812791,1706289038400,-300.32472629,0.00038382,2]
[312812793,1706289038410,-2258.33,0.00038382,3]
[312812794,1706289038420,-4306.48,0.00038382,3]
[312812795,1706289038429,-3588.74,0.00038382,3]
[312812796,1706289038438,-195.54104758,0.0003839,2]
[312812797,1706289038448,-727.7792225,0.0003839,4]
[312812798,1706289038458,-426.28921801,0.0003839,2]
[312812799,1706289038468,-295.0754832,0.0003839,4]
[312812800,1706289038477,-540.62353099,0.00038391,4]
[312812801,1706289038487,-1000.35120883,0.00038391,4]
[312812802,1706289038496,-276000.0,0.00038392,2]
[312812803,1706289038505,-300.32472629,0.000384,2]
[312812804,1706289038514,-10210.64089413,0.00038427,4]
[312812805,1706289038523,-21781.27540601,0.00038427,4]
[312812806,1706289038532,-3445.77462397,0.00038427,2]
[312812807,1706289038541,-434.74,0.00038491,2]
[312812808,1706289038550,-434.74,0.00038491,2]
[312812809,1706289038559,-434.74,0.00038491,2]
[312812810,1706289038568,-434.74,0.00038491,2]
[312812811,1706289038577,-434.74,0.00038491,2]
[312812813,1706289038586,-434.74,0.00038491,2]
[312812815,1706289038594,-434.74,0.00038491,2]
[312812816,1706289038603,-434.74,0.00038491,2]
[312812817,1706289038612,-434.8,0.00038491,2]
[312812818,1706289038621,-421.92881091,0.00038492,3]
[312812820,1706289038630,-195323.48184024,0.00038492,2]
[312812822,1706289038640,-2142.39328841,0.000385,4]
[312812823,1706289038649,-150.96980604,0.00038796,2]
[312812824,1706289038658,-3000.0,0.00039,120]
[312812825,1706289038667,-300.0,0.000392,20]
[312812826,1706289038676,-498.5185957,0.000395,14]
[312812828,1706289038686,-10439.78504856,0.000399,2]
[312812830,1706289038695,-453.20212845,0.0003999,4]
[312812832,1706289038704,-2061.12147888,0.0004,2]
[312812833,1706289038714,-37590.8874306,0.0004,120]
[312812835,1706289038726,-5023.21674937,0.0004,120]
[312812837,1706289038735,-253.19198089,0.0004,120]
[312812839,1706289038744,-1358.63105245,0.0004,10]
[312812840,1706289038753,-2926.56901919,0.0004,2]
[312812842,1706289038762,-641.24072098,0.0004,4]
[312812843,1706289038774,-768.09122589,0.0004,4]
[312812844,1706289038783,-1820.96890737,0.0004,30]
[312812845,1706289038792,-2000.0,0.0004,27]
[312812846,1706289038800,-1467.0758668,0.0004001,27]
[312812868,1706289042057,-532.9241332,0.0004001,27]
[312812869,1706289042070,-2000.0,0.0004002,27]
[312812870,1706289042079,-3538.395665,0.0004003,27]
[312812871,1706289042088,-150.0,0.000403,15]
[312812872,1706289042098,-300.0,0.000403,15]
[312812873,1706289042108,-150.1,0.00040508,2]
[312812874,1706289042117,-1000.0,0.000406,30]
[312812875,1706289042127,-500.0,0.000406,15]
[312812876,1706289042137,-300.0,0.000407,21]
[312812877,1706289042146,-1000.0,0.000409,30]
[312812878,1706289042155,-359.94,0.00040999,2]
[312812879,1706289042164,-223.51810289,0.00040999,15]
[312812880,1706289042173,-500.0,0.00040999,15]
[312812881,1706289042182,-500.0,0.00040999,15]
[312812882,1706289042191,-618.40761947,0.00040999,15]
[312812883,1706289042201,-241.60116461,0.00040999,15]
[312812884,1706289042211,-500.0,0.00040999,15]
[312812885,1706289042220,-485.60639442,0.00040999,15]
[312812886,1706289042230,-500.0,0.00040999,15]
[312812887,1706289042240,-500.0,0.00040999,15]
[312812888,1706289042249,-500.0,0.00040999,15]
[312812889,1706289042258,-500.0,0.00040999,15]
[312812890,1706289042268,-598.65430698,0.00040999,15]
[312812891,1706289042277,-500.0,0.00040999,15]
[312812892,1706289042286,-500.0,0.00040999,15]
[312812893,1706289042296,-500.0,0.00040999,15]
[312812894,1706289042305,-500.0,0.00040999,15]
[312812895,1706289042315,-644.3681498,0.00040999,15]
[312812896,1706289042325,-500.0,0.00040999,15]
[312812897,1706289042334,-500.0,0.00040999,15]
[312812899,1706289042343,-500.0,0.00040999,15]
[312812901,1706289042352,-500.0,0.00040999,15]
[312812902,1706289042362,-28611.26692854,0.00041,2]
[312812903,1706289042375,-4074.15197877,0.00041,2]
[312813330,1706290233504,-172.61477,0.0003629,2]
[312813349,1706290233515,-217.23217411,0.00036376,4]
[312813355,1706290233657,-760.76957335,0.00036898,30]
[312813358,1706290233666,-9089.14297252,0.00036918,2]
[312813443,1706290238252,-15810.85702748,0.00036918,2]
[312813445,1706290238262,-4620.81630345,0.0003795,30]
[312813446,1706290238273,-300.32472632,0.0003819,2]
[312813447,1706290238282,-5404.9,0.00038271,3]
[312813449,1706290238291,-4504.09,0.00038271,3]
[312813450,1706290238301,-200.0,0.00038279,2]
[312813452,1706290238310,-391.27,0.0003828,2]
[312813454,1706290238319,-391.27,0.0003828,2]
[312813455,1706290238328,-391.27,0.0003828,2]
[312813457,1706290238337,-391.27,0.0003828,2]
[312813459,1706290238347,-107608.38790601,0.00038281,4]
[312813461,1706290238356,-251.72207558,0.0003829,2]
[312813462,1706290238365,-170.98714659,0.0003829,4]
[312813464,1706290238375,-1294.07008414,0.0003829,4]
[312813466,1706290238384,-6347.46294749,0.0003829,4]
[312813468,1706290238393,-727.7792225,0.0003829,4]
[312813470,1706290238403,-426.28921801,0.0003829,2]
[312813471,1706290238413,-540.62353099,0.0003829,4]
[312813472,1706290238423,-295.0754832,0.0003829,4]
[312813473,1706290238434,-1000.35120883,0.0003829,4]
[312813475,1706290238442,-1605.36903855,0.00038291,2]
[312813476,1706290238454,-276000.0,0.00038292,2]
[312813478,1706290238463,-300.32472629,0.00038355,2]
[312813480,1706290238472,-409.14905199,0.000384,2]
[312813482,1706290238481,-409.14905199,0.000384,2]
[312813484,1706290238491,-409.14905199,0.000384,2]
[312813486,1706290238503,-409.14905199,0.000384,2]
[312813488,1706290238512,-409.14905199,0.000384,2]
[312813490,1706290238521,-409.14905199,0.000384,2]
[312813492,1706290238532,-409.14905199,0.000384,2]
[312813494,1706290238542,-409.14905199,0.000384,2]
[312813496,1706290238552,-409.14905199,0.000384,2]
[312813498,1706290238561,-409.14905,0.000384,2]
[312813500,1706290238570,-2588.97542399,0.00038427,2]
[312813502,1706290238580,-1120.02685259,0.00038427,2]
[312813504,1706290238590,-2608.66156616,0.00038427,2]
[312813506,1706290238599,-3164.81570011,0.00038427,2]
[312813508,1706290238611,-2142.39328841,0.000385,4]
[312813510,1706290238620,-300.32472629,0.0003852,2]
[312813512,1706290238629,-300.32472629,0.00038685,2]
[312813514,1706290238638,-391.27,0.00038798,2]
[312813516,1706290238648,-421.92881091,0.00038799,3]
[312813518,1706290238656,-137696.78024244,0.00038799,2]
[312813520,1706290238668,-10202.84952288,0.00038799,2]
[312813560,1706290241688,-47423.85207492,0.00038799,2]
[312813561,1706290241699,-300.32472629,0.0003885,2]
[312813562,1706290241709,-12267.60075838,0.0003895,5]
[312813563,1706290241720,-3000.0,0.00039,120]
[312813564,1706290241742,-777.0,0.0003936,2]
[312813565,1706290241753,-453.20212845,0.0003999,4]
[312813566,1706290241763,-150.1,0.00040508,2]
[312813567,1706290241772,-354.11378074,0.00040998,4]
[312813568,1706290241782,-456.91148331,0.00040998,4]
[312813569,1706290241791,-588.5086678,0.00040998,4]
[312813570,1706290241801,-262.41441764,0.00040998,4]
[312813571,1706290241811,-195.88510811,0.00040998,4]
[312813572,1706290241826,-6985.27189614,0.00040998,4]
[312813573,1706290241836,-1059.7152717,0.00040998,30]
[312813574,1706290241848,-625.15059201,0.00040999,4]
[312813575,1706290241858,-1925.41179364,0.00040999,4]
[312813576,1706290241867,-421.93231746,0.00040999,5]
[312813577,1706290241882,-391.27,0.00040999,2]
[312813578,1706290241892,-391.29,0.00040999,2]
[312813579,1706290241902,-391.27,0.00040999,2]
[312813580,1706290241912,-391.27,0.00040999,2]
[312813581,1706290241923,-500.0,0.00040999,15]
[312813582,1706290241932,-293.81868331,0.00040999,15]
[312813583,1706290241943,-7660.8918356,0.00041,2]
[312813584,1706290241957,-2396.75811269,0.00041,2]
[312813585,1706290241971,-2089.78166174,0.00041,2]
[312813586,1706290241984,-7454.17345008,0.00041,2]
[312813587,1706290241997,-3859.43957152,0.00041,2]
[312813598,1706290243254,-3753.41,0.0004099,3]
[312813599,1706290243266,-211090.73898864,0.00041,2]
[312813600,1706290243279,-46939.7075979,0.00041,2]
[312813662,1706290246943,-4332.2,0.00038192,2]
[312813686,1706290266945,293.4468762,0.00022,4]
[312813687,1706290328911,212.09151868,0.00022,2]
[312813688,1706290336012,235.01682964,0.00022,2]
[312813732,1706291432334,-155.00310006,0.00030136,4]
[312813734,1706291432344,-157.76962,0.00030137,2]
[312813736,1706291432354,-151.53183918,0.00035634,2]
[312813738,1706291432366,-643.125,0.00035634,2]
[312813740,1706291432375,-3000.0,0.00036229,2]
[312813742,1706291432385,-12976.517101,0.00036285,2]
[312813744,1706291432395,-24900.0,0.00036449,2]
[312813746,1706291432405,-461.67668995,0.00038,4]
[312813748,1706291432415,-240.25978107,0.00038092,2]
[312813750,1706291432425,-500.0,0.0003818,2]
[312813752,1706291432435,-8232.43,0.00038181,3]
[312813754,1706291432444,-170.98714659,0.0003819,4]
[312813756,1706291432454,-1605.36903855,0.0003819,2]
[312813758,1706291432464,-295.0754832,0.0003819,4]
[312813760,1706291432474,-426.28921801,0.0003819,2]
[312813762,1706291432482,-540.62353099,0.0003819,4]
[312813764,1706291432491,-1294.07008414,0.0003819,4]
[312813766,1706291432500,-195.54104758,0.0003819,2]
[312813768,1706291432509,-1000.35120883,0.0003819,4]
[312813770,1706291432518,-6347.46294749,0.0003819,4]
[312813771,1706291432527,-727.7792225,0.0003819,4]
[312813773,1706291432536,-416.43,0.0003819,2]
[312813776,1706291432552,-2373.20128333,0.0003819,2]
[312813779,1706291432567,-482.8,0.0003819,2]
[312813781,1706291432578,-1304.02884152,0.00038191,4]
[312813783,1706291432587,-25054.52177904,0.00038191,4]
[312813941,1706291440484,-7400.94299198,0.00038191,4]
[312813944,1706291440604,-6860.36,0.00038181,3]
[312813945,1706291440614,-75152.92313499,0.00038191,4]